bitfinex/quotes_ETHUSD_20240825
["timestamp","ask_amount","ask_price","bid_price","bid_amount"]
[1724611898551,6.61023,2769.9,2769.8,0.0113863]
[1724611898934,10.22046,2769.9,2769.8,0.0113863]
[1724611899388,12.55696,2769.9,2769.8,0.0113863]
[1724611901258,8.94673,2769.9,2769.8,0.0113863]
[1724611901461,10.3279718,2769.9,2769.8,0.0113863]
[1724611912089,17.5484318,2769.9,2769.8,0.0113863]
[1724611913324,13.9382018,2769.9,2769.8,0.0113863]
[1724611913527,15.20139816,2769.9,2769.8,0.0113863]
[1724611916547,4.3812418,2769.9,2769.8,0.0113863]
[1724611916700,7.15531636,2770.1,2769.8,0.0113863]
[1724611916898,3.61023,2769.9,2769.8,0.0113863]
[1724611917616,4.87342636,2769.9,2769.8,0.0113863]
[1724611918026,6.61023,2769.9,2769.8,0.0113863]
[1724611918227,11.470704,2769.9,2769.8,0.0113863]
[1724611918803,13.752804,2769.9,2769.8,0.0113863]
[1724611920739,11.470704,2769.9,2769.8,0.0113863]
[1724611922160,13.752804,2769.9,2769.8,0.0113863]
[1724611922716,11.470704,2769.9,2769.8,0.0113863]
[1724611926326,13.752804,2769.9,2769.8,0.0113863]
[1724611927526,17.363034,2769.9,2769.8,0.0113863]
[1724611934520,20.39489831,2769.9,2769.8,0.0113863]
[1724611937277,26.64543722,2769.9,2769.8,6.3e-06]
[1724611937593,24.9292934,2769.9,2769.8,6.3e-06]
[1724611938819,27.568914,2769.9,2769.8,6.3e-06]
[1724611939193,24.9292934,2769.9,2769.8,6.3e-06]
[1724611940113,23.16145431,2769.9,2769.8,6.3e-06]
[1724611940475,25.80028291,2769.9,2769.8,6.3e-06]
[1724611940673,23.16145431,2769.9,2769.8,6.3e-06]
[1724611942575,25.80000446,2769.9,2769.8,6.3e-06]
[1724611945632,25.7997221,2769.9,2769.8,6.3e-06]
[1724611946750,1.26402522,2768.8,2768.1,2.403]
[1724611946960,3.61128,2769.1,2768.1,2.403]
[1724611946961,1.26402522,2768.4,2768.1,2.403]
[1724611947964,3.0,2768.5,2768.1,2.403]
[1724611948253,6.61209,2768.5,2768.1,2.403]
[1724611951547,6.61209,2768.5,2768.2,2.4362]
[1724611954322,3.6122,2768.4,2768.2,2.4362]
[1724611957067,3.61232,2768.3,2768.2,2.4362]
[1724611962751,3.61281,2768.0,2767.7,2.4362]
[1724611962953,1.26402522,2768.0,2767.7,2.4362]
[1724611965249,4.87675522,2768.0,2767.7,2.4362]
[1724611965448,4.87675522,2768.0,2767.7,2.3862]
[1724611965681,3.61286,2767.9,2767.7,2.3862]
[1724611966858,3.61297,2767.8,2767.7,2.3862]
[1724611967057,4.87699522,2767.8,2767.7,2.3862]
[1724611967993,4.87699522,2767.8,2767.1,3.7442543]
[1724611968194,4.87699522,2767.8,2767.2,3.61375]
[1724611968406,1.26402522,2767.8,2767.2,3.61375]
[1724611968613,1.26402522,2767.8,2767.3,2.355]
[1724611969909,4.87703522,2767.8,2767.3,2.355]
[1724611970225,1.26402522,2767.6,2767.3,2.355]
[1724611970801,3.61338,2767.5,2767.1,2.4854843]
[1724611971590,2.11306174,2767.6,2767.1,2.4854843]
[1724611971788,3.0,2767.7,2767.1,2.4854843]
[1724611972101,4.87701522,2767.8,2767.4,2.355]
[1724611972478,3.0,2767.7,2767.4,2.355]
[1724611973106,4.26402522,2767.8,2767.4,2.355]
[1724611973292,1.26402522,2767.6,2767.4,2.355]
[1724611977703,7.87713522,2767.7,2767.4,2.355]
[1724611982019,1.26402522,2767.5,2767.1,2.4854843]
[1724611982211,3.61358,2767.4,2767.1,2.4854843]
[1724611982373,4.87731522,2767.6,2767.1,2.4854843]
[1724611982691,6.6134,2767.5,2767.1,2.4854843]
[1724611985800,3.0,2767.5,2767.1,2.4854843]
[1724611986003,3.0,2767.5,2767.2,3.61368]
[1724611986243,3.0,2767.8,2767.3,2.355]
[1724611986641,4.26402522,2767.8,2767.3,2.355]
[1724611987140,4.26402522,2767.8,2767.4,3.61341]
[1724611987141,3.0,2767.8,2767.4,3.61341]
[1724611987350,4.26402522,2767.9,2767.5,2.355]
[1724611988513,7.87688522,2767.9,2767.5,2.355]
[1724611989048,3.0,2767.9,2767.5,2.5905]
[1724611989537,7.45,2768.0,2767.6,3.61314]
[1724611989721,7.45,2768.0,2767.7,2.4804]
[1724611990053,16.69402522,2768.3,2767.8,2.4804]
[1724611990233,3.0,2768.2,2767.8,2.4804]
[1724611990553,3.61158,2768.9,2767.8,2.4804]
[1724611990554,7.45,2768.7,2768.0,2.4804]
[1724611990704,1.26402522,2768.5,2768.0,2.4804]
[1724611991826,4.26402522,2768.5,2768.0,2.4804]
[1724611992227,1.26402522,2768.3,2768.0,2.4804]
[1724611992529,4.87643522,2768.3,2768.0,2.4804]
[1724611996027,3.61279,2768.0,2767.6,2.4804]
[1724611996216,1.26402522,2767.8,2767.6,2.4804]
[1724611996445,3.0,2768.2,2767.6,3.61318]
[1724611996616,3.0,2768.2,2767.9,2.4804]
[1724611999054,7.45,2768.3,2767.9,2.4804]
[1724611999260,7.45,2768.3,2767.9,6.09321]
[1724611999872,7.45,2768.3,2767.9,2.4804]
[1724612000031,3.6122,2768.4,2767.9,2.4804]
[1724612000232,3.0,2768.3,2767.9,2.4804]
[1724612001059,3.0,2768.4,2767.9,2.4804]
[1724612001256,6.61221,2768.4,2767.9,2.4804]
[1724612003659,3.61234,2768.3,2767.9,2.4804]
[1724612003808,3.61255,2768.2,2767.9,2.4804]
[1724612004015,4.87663522,2768.1,2767.6,2.4804]
[1724612005154,1.26402522,2767.7,2767.6,2.4804]
[1724612005361,4.87712522,2767.7,2767.6,2.4804]
[1724612005711,4.87712522,2767.7,2767.1,3.7442843]
[1724612005712,4.87712522,2767.7,2767.4,2.4804]
[1724612006540,3.6131,2767.7,2767.4,2.4804]
[1724612007049,4.87693522,2767.9,2767.4,2.4804]
[1724612008009,3.613,2767.8,2767.4,2.4804]
[1724612008423,3.61278,2768.0,2767.4,3.089815]
[1724612008655,3.0,2767.9,2767.7,2.3302]
[1724612008858,3.0,2768.0,2767.7,2.3302]
[1724612011857,6.61279,2768.0,2767.7,2.3302]
[1724612012061,3.61313,2767.7,2767.4,2.3302]
[1724612014939,3.61325,2767.6,2767.3,2.3302]
[1724612015982,1.26402522,2767.4,2767.1,0.1304843]
[1724612016281,3.61373,2767.3,2767.1,0.1304843]
[1724612016581,7.22746,2767.3,2767.1,0.1304843]
[1724612016737,3.61373,2767.3,2767.1,0.1304843]
[1724612017243,3.0,2767.5,2767.1,0.1304843]
[1724612017474,6.61331,2767.6,2767.1,0.1304843]
[1724612019443,3.0,2767.6,2767.2,2.448]
[1724612019669,6.61318,2767.7,2767.2,2.448]
[1724612020442,3.61324,2767.6,2767.2,2.448]
[1724612022879,1.022624,2767.6,2767.1,0.1304843]
[1724612023079,3.6135,2767.4,2767.1,0.1304843]
[1724612023277,3.61376,2767.2,2767.1,0.1304843]
[1724612024800,7.2271,2767.4,2767.1,0.1304843]
[1724612026561,3.6135,2767.4,2767.1,0.1304843]
[1724612027473,3.6137,2767.3,2767.1,0.1304843]
[1724612028107,12.69412,2767.2,2767.1,0.1304843]
[1724612028660,16.30788,2767.2,2767.1,0.1304843]
[1724612028889,17.23060855,2767.2,2767.1,0.1304843]
[1724612029089,19.31732386,2767.2,2767.1,0.1304843]
[1724612030016,3.61503,2766.3,2765.7,2.3545]
[1724612030663,3.6151,2766.2,2765.7,2.3545]
[1724612030883,3.61536,2766.0,2765.7,2.3545]
[1724612031603,3.6151,2766.2,2765.7,2.3545]
[1724612033212,3.61511,2766.2,2765.7,2.3545]
[1724612033381,4.338105,2766.2,2765.7,2.3545]
[1724612033709,3.61511,2766.2,2765.7,2.3545]
[1724612035362,3.0,2766.7,2766.1,3.61508]
[1724612035568,3.0,2766.6,2766.2,2.3545]
[1724612035794,3.61423,2766.9,2766.2,2.3545]
[1724612036814,3.61423,2766.9,2766.3,3.61491]
[1724612037196,3.0,2766.8,2766.3,3.61491]
[1724612038071,6.6143,2766.8,2766.2,2.3545]
[1724612038500,6.6143,2766.8,2766.2,5.96954]
[1724612038699,3.0,2766.8,2766.3,3.61492]
[1724612038911,3.0,2767.0,2766.3,3.61492]
[1724612039213,0.661396,2766.9,2766.3,3.61492]
[1724612039902,7.889796,2766.9,2766.3,3.61492]
[1724612040105,3.0,2766.8,2766.3,3.61492]
[1724612040823,3.0,2766.8,2766.2,2.3545]
[1724612040824,6.61429,2766.8,2766.2,2.3545]
[1724612041373,3.61469,2766.5,2766.2,2.3545]
[1724612041819,4.24077022,2766.5,2766.2,2.3545]
[1724612043175,7.85555022,2766.5,2765.9,5.96987]
[1724612043399,4.24077022,2766.5,2765.9,5.96987]
[1724612043807,3.61481,2766.4,2765.9,5.96987]
[1724612044525,0.62608022,2766.5,2765.9,5.96987]
[1724612044526,4.24077022,2766.5,2765.9,5.96987]
[1724612044724,3.61469,2766.5,2765.9,5.96987]
[1724612047177,9.69562,2766.7,2766.0,3.61532]
[1724612047417,3.61457,2766.6,2766.0,3.61532]
[1724612048973,7.45,2766.9,2766.4,2.4417]
[1724612049268,7.45,2766.9,2766.5,3.61459]
[1724612050636,2.4148,2767.4,2766.8,3.61426]
[1724612050637,11.06351,2767.4,2766.8,3.61426]
[1724612051160,7.45,2767.4,2766.9,3.61402]
[1724612051567,7.45,2767.4,2766.9,7.22808]
[1724612051727,7.45,2767.4,2767.0,3.61401]
[1724612051927,7.45,2767.4,2766.9,3.61402]
[1724612052235,7.45,2767.4,2766.9,7.22809]
[1724612052633,7.45,2767.4,2767.0,3.61398]
[1724612054851,7.45,2767.4,2766.9,7.22806]
[1724612055189,7.45,2767.4,2766.9,3.61402]
[1724612055882,7.45,2767.4,2766.9,7.22808]
[1724612056684,3.61333,2767.6,2766.9,7.22808]
[1724612056850,3.61333,2767.6,2766.9,3.61402]
[1724612057047,3.61333,2767.6,2766.9,7.22809]
[1724612057760,3.61333,2767.6,2766.9,3.61402]
[1724612058287,3.61333,2767.6,2766.9,7.22808]
[1724612059291,3.61332,2767.6,2766.9,7.22809]
[1724612060078,4.45780646,2767.6,2766.9,3.61402]
[1724612060310,5.86809,2767.5,2766.9,3.61402]
[1724612061217,5.86809,2767.5,2766.9,7.22808]
[1724612062213,0.84448646,2767.6,2766.9,3.61402]
[1724612062518,7.45774646,2767.6,2767.1,3.61389]
[1724612062813,1.71624465,2767.5,2766.9,7.22805]
[1724612063584,1.71624465,2767.5,2766.9,3.61402]
[1724612063883,5.32961465,2767.5,2766.9,3.61402]
[1724612064411,5.86836,2767.3,2766.6,2.4811]
[1724612064623,0.586836,2767.2,2766.6,2.4811]
[1724612064774,0.586836,2767.2,2766.7,3.61438]
[1724612068313,4.200606,2767.2,2766.6,2.4811]
[1724612068704,4.200606,2767.2,2766.6,6.0956]
[1724612074045,3.6141,2767.0,2766.1,6.08312]
[1724612074227,7.22823,2767.0,2766.4,3.6148]
[1724612074542,3.61415,2766.9,2766.2,3.61495]
[1724612075431,3.61428,2766.8,2766.1,6.08312]
[1724612075636,5.93332,2766.7,2766.1,3.61512]
[1724612075926,3.61457,2766.6,2765.9,9.69877]
[1724612077471,3.61457,2766.6,2766.0,3.61529]
[1724612078889,7.22919,2766.6,2766.0,3.61529]
[1724612079091,3.61457,2766.6,2766.0,3.61529]
[1724612079297,3.61488,2766.4,2765.8,0.54281221]
[1724612079840,3.0,2766.3,2765.8,4.15839221]
[1724612081744,6.61493,2766.3,2765.8,0.54281221]
[1724612081887,3.61515,2766.2,2765.8,0.54281221]
[1724612082092,2.3189,2766.1,2765.8,0.54281221]
[1724612083434,0.954921,2766.0,2765.8,0.54281221]
[1724612083638,3.0,2766.0,2765.8,0.54281221]
[1724612083836,7.2309,2765.9,2765.8,0.54281221]
[1724612084137,7.2309,2765.9,2765.2,2.468]
[1724612084138,3.61573,2765.7,2765.2,2.468]
[1724612085731,3.61573,2765.7,2765.2,6.08436]
[1724612085938,3.61573,2765.7,2765.2,7.35808139]
[1724612087040,7.45,2766.0,2765.2,3.74172139]
[1724612087245,7.45,2766.0,2765.2,2.468]
[1724612087536,7.45,2766.0,2765.5,3.61596]
[1724612088829,7.45,2766.0,2765.3,7.23224]
[1724612089342,3.61535,2766.0,2765.4,3.61605]
[1724612089639,9.54945,2766.1,2765.4,3.61605]
[1724612089834,3.0,2766.0,2765.4,3.61605]
[1724612090403,3.0,2766.0,2765.5,3.61595]
[1724612090710,3.0,2766.0,2765.5,7.955107]
[1724612090929,3.0,2766.0,2765.5,6.697557]
[1724612091238,3.0,2766.0,2765.5,6.697507]
[1724612091443,22.88,2766.3,2765.6,3.03643386]
[1724612091743,6.61495,2766.3,2765.7,4.22740409]
[1724612092092,6.61495,2766.3,2765.7,7.84303409]
[1724612092294,3.0,2766.3,2765.8,3.61556]
[1724612092538,3.61494,2766.3,2765.7,4.22740409]
[1724612094444,5.4812,2766.4,2765.7,4.22740409]
[1724612094445,9.0961,2766.4,2765.8,3.61557]
[1724612095108,9.0961,2766.4,2765.9,5.97374]
[1724612095109,3.0,2766.4,2765.9,5.97374]
[1724612095445,3.0,2766.4,2765.9,6.99384541]
[1724612096259,3.0,2766.4,2766.0,3.61531]
[1724612096546,3.0,2766.5,2766.0,3.61531]
[1724612097328,7.22867,2766.8,2766.2,3.61506]
[1724612097547,6.61446,2766.7,2766.0,7.23053]
[1724612097747,6.61446,2766.7,2766.1,3.61517]
[1724612097943,7.885456,2766.7,2766.1,3.61517]
[1724612099453,6.61446,2766.7,2766.1,3.61517]
[1724612099765,10.22896,2766.7,2766.1,3.61517]
[1724612100047,6.61446,2766.7,2766.1,3.61517]
[1724612100794,10.22897,2766.7,2766.1,3.61517]
[1724612101361,10.22897,2766.7,2766.0,3.61522]
[1724612101664,3.61456,2766.6,2766.0,3.61522]
[1724612102263,3.61501,2766.3,2765.7,2.3584]
[1724612102555,4.271017,2766.7,2766.0,3.61525]
[1724612102913,3.61456,2766.6,2766.0,3.61525]
[1724612104060,7.22918,2766.6,2766.0,3.61525]
[1724612104267,3.61456,2766.6,2766.0,3.61524]
[1724612104919,3.61473,2766.5,2765.9,3.6154]
[1724612105230,3.61483,2766.4,2765.8,3.61553]
[1724612105424,6.09613,2766.3,2765.8,3.61553]
[1724612105631,3.61481,2766.4,2765.8,3.6155]
[1724612105840,3.61481,2766.4,2765.8,7.23101]
[1724612106254,3.61481,2766.4,2765.9,3.61544]
[1724612106559,2.4812,2766.5,2765.9,3.61544]
[1724612106863,5.4812,2766.7,2766.2,3.61503]
[1724612107030,6.09568,2766.7,2766.0,5.97361]
[1724612107359,3.61462,2766.6,2766.0,5.97361]
[1724612107912,4.73120984,2766.6,2766.0,5.97361]
[1724612108412,3.61471,2766.5,2766.0,3.61521]
[1724612109257,1.11658984,2766.6,2766.0,7.23045]
[1724612109457,1.11658984,2766.6,2766.0,3.61521]
[1724612110133,1.11658984,2766.6,2766.1,3.61511]
[1724612110325,3.0,2766.8,2766.3,3.61483]
[1724612111742,3.0,2766.8,2766.2,3.61494]
[1724612111942,6.6143,2766.8,2766.2,7.22993]
[1724612112443,8.613373,2766.8,2766.2,7.22993]
[1724612112631,8.613373,2766.8,2766.2,3.61494]
[1724612114669,3.61481,2766.4,2765.8,3.61552]
[1724612115221,3.61481,2766.4,2765.7,5.90237]
[1724612115222,3.61502,2766.3,2765.7,5.90237]
[1724612115420,5.92722,2766.3,2765.7,5.90237]
[1724612116072,2.3122,2766.3,2765.8,3.61551]
[1724612116433,2.3122,2766.3,2765.7,5.90237]
[1724612116754,5.92716,2766.3,2765.8,3.61558]
[1724612117129,2.2972,2766.3,2765.8,4.567372]
[1724612118777,2.2972,2766.3,2765.9,3.61544]
[1724612118990,2.2972,2766.3,2765.9,7.23088]
[1724612119133,2.2972,2766.3,2765.9,3.61544]
[1724612120778,2.3122,2766.5,2766.1,3.61519]
[1724612121372,7.45,2766.7,2766.2,3.61495]
[1724612121681,3.0,2766.6,2766.2,3.61495]
[1724612121885,2.3122,2766.5,2765.9,3.61537]
[1724612122182,2.3122,2766.3,2765.7,3.6156]
[1724612122674,5.3122,2766.3,2765.7,3.6156]
[1724612123178,3.61508,2766.2,2765.7,3.6156]
[1724612123479,5.92747,2766.1,2765.5,3.61593]
[1724612123641,5.92747,2766.1,2765.5,4.567814]
[1724612124885,5.92747,2766.1,2765.5,8.183714]
[1724612125181,5.92747,2766.1,2765.5,4.567784]
[1724612125479,5.3122,2766.3,2765.7,5.9023]
[1724612125652,5.3122,2766.3,2765.8,3.61558]
[1724612126849,2.3122,2766.6,2766.0,3.61521]
[1724612127049,5.92653,2766.8,2766.3,3.6149]
[1724612127250,5.92653,2766.8,2766.2,3.61498]
[1724612127459,9.54089,2766.8,2766.2,3.61498]
[1724612127838,3.61444,2766.7,2766.2,3.61498]
[1724612128278,0.37790577,2767.2,2767.1,7.22778]
[1724612128488,3.61227,2768.4,2767.1,3.63127945]
[1724612128650,3.61259,2768.1,2767.4,3.6134]
[1724612128852,3.61259,2768.1,2767.2,7.22741]
[1724612129052,3.61319,2767.7,2767.0,3.61393]
[1724612129253,3.61325,2767.6,2766.7,6.72554946]
[1724612129479,3.61319,2767.7,2766.9,3.61413]
[1724612129695,3.61319,2767.7,2767.0,3.61401]
[1724612131179,3.61332,2767.6,2766.9,3.61413]
[1724612131885,3.61347,2767.5,2766.7,5.96952]
[1724612132036,3.61351,2767.4,2766.7,6.87011539]
[1724612132478,3.61347,2767.5,2766.8,3.61427]
[1724612134286,3.61351,2767.4,2766.8,3.61427]
[1724612134584,3.61347,2767.5,2766.9,3.61413]
[1724612135873,3.61347,2767.5,2767.0,1.0]
[1724612139357,4.39109,2767.5,2767.0,1.0]
[1724612140264,3.61347,2767.5,2767.0,1.0]
[1724612140555,3.61389,2767.1,2767.0,1.0]
[1724612140956,6.61389,2767.1,2767.0,1.0]
[1724612142364,3.0,2767.1,2767.0,1.0]
[1724612142577,3.0,2767.1,2766.5,3.61467]
[1724612142875,3.61402,2767.0,2766.5,3.61467]
[1724612143065,3.61402,2767.0,2766.3,3.61483]
[1724612146166,3.61402,2767.0,2766.3,7.22966]
[1724612146564,3.61402,2767.0,2766.4,3.61479]
[1724612148769,3.61402,2767.0,2766.5,3.61467]
[1724612150806,3.0,2767.1,2766.5,3.61467]
[1724612151569,3.0,2767.1,2766.5,3.61458]
[1724612152000,6.61391,2767.1,2766.5,3.61458]
[1724612153004,6.61391,2767.1,2766.6,2.3393]
[1724612153215,7.45,2767.4,2767.0,3.61399]
[1724612153422,16.04335,2767.6,2767.1,3.61387]
[1724612153423,3.61335,2767.6,2767.1,3.61387]
[1724612153584,4.16273,2767.7,2767.1,3.61387]
[1724612154610,3.0,2767.6,2767.1,3.61387]
[1724612154917,3.61289,2767.9,2767.3,3.6136]
[1724612155091,6.439069,2768.0,2767.3,3.6136]
[1724612155092,3.61299,2767.8,2767.3,3.6136]
[1724612155420,11.06256,2768.2,2767.3,3.61359]
[1724612155620,3.61261,2768.1,2767.5,3.61327]
[1724612156614,3.61235,2768.3,2767.7,3.61303]
[1724612157111,3.61235,2768.3,2767.6,2.3393]
[1724612157112,3.61235,2768.3,2767.8,3.61297]
[1724612157911,3.0,2768.2,2767.8,3.61297]
[1724612159014,3.0,2768.2,2767.6,2.3393]
[1724612159015,3.0,2768.2,2767.6,5.95244]
[1724612159310,3.0,2768.2,2767.6,6.909014]
[1724612160117,3.0,2768.2,2767.7,3.6131]
[1724612160424,3.61182,2768.7,2767.9,2.3393]
[1724612160569,3.61208,2768.5,2767.9,2.3393]
[1724612160775,3.61253,2768.2,2767.6,3.61323]
[1724612160985,3.61273,2768.0,2767.5,2.3393]
[1724612161525,3.61227,2768.4,2767.5,2.3393]
[1724612161672,3.61247,2768.2,2767.6,3.61315]
[1724612163120,3.61247,2768.2,2767.7,3.61309]
[1724612163278,3.0,2768.3,2767.7,3.61309]
[1724612164119,6.61234,2768.3,2767.7,3.61309]
[1724612165926,6.61234,2768.3,2767.8,3.61294]
[1724612165927,3.0,2768.3,2767.8,3.61294]
[1724612167419,6.61236,2768.3,2767.6,7.22627]
[1724612168985,6.61236,2768.3,2767.7,3.61306]
[1724612169774,3.0,2768.3,2767.7,3.61306]
[1724612170159,9.6845,2768.8,2768.1,3.6125]
[1724612170160,11.06172,2768.8,2768.1,3.6125]
[1724612170367,6.61181,2768.7,2768.0,3.61271]
[1724612170528,6.61181,2768.7,2768.0,7.826601]
[1724612170733,6.61181,2768.7,2768.0,4.213891]
[1724612170975,6.61181,2768.7,2768.0,7.826531]
[1724612171366,6.61181,2768.7,2768.1,3.61255]
[1724612171582,6.61181,2768.7,2768.2,0.7826441]
[1724612171753,3.61193,2768.6,2768.2,0.7826441]
[1724612171952,3.0,2768.5,2768.2,0.7826441]
[1724612177855,3.61143,2769.0,2768.3,2.3965]
[1724612178065,3.61143,2769.0,2768.4,3.93002441]
[1724612178268,7.22293,2769.0,2768.4,0.31791441]
[1724612178464,3.61157,2768.9,2768.4,0.31791441]
[1724612179680,3.61168,2768.8,2768.2,0.7826441]
[1724612179836,3.61168,2768.8,2768.1,3.61251]
[1724612180032,3.612,2768.6,2768.0,6.0092]
[1724612181577,3.612,2768.6,2768.1,3.61254]
[1724612181981,6.063,2768.9,2767.7,3.61301]
[1724612182152,3.6124,2768.3,2767.6,2.3965]
[1724612182334,3.61261,2768.1,2767.6,2.3965]
[1724612182534,3.61261,2768.1,2767.5,3.61328]
[1724612182803,3.61261,2768.1,2767.4,6.00999]
[1724612182978,3.61279,2768.0,2767.4,6.00999]
[1724612183182,3.61279,2768.0,2767.5,0.962356]
[1724612183490,3.61318,2767.7,2767.1,3.61382]
[1724612185879,3.61309,2767.8,2767.1,3.61376]
[1724612187290,3.61309,2767.8,2767.2,3.61365]
[1724612191372,3.0,2767.9,2767.3,3.6136]
[1724612191577,3.0,2767.9,2767.3,3.97496]
[1724612192274,3.0,2767.9,2767.4,6.03758]
[1724612193161,7.45,2768.3,2767.8,3.61295]
[1724612193375,11.0624,2768.3,2767.6,7.22625]
[1724612193561,11.0624,2768.3,2767.7,0.722625]
[1724612193763,11.0624,2768.3,2767.6,3.61311]
[1724612194690,6.61247,2768.2,2767.6,3.61311]
[1724612196490,10.22502,2768.2,2767.6,3.61311]
[1724612196852,6.61247,2768.2,2767.6,3.61311]
[1724612204355,10.22501,2768.2,2767.6,3.61311]
[1724612204681,3.61294,2767.9,2767.3,0.36136]
[1724612205549,3.61303,2767.8,2767.3,0.36136]
[1724612208056,2.2937,2767.7,2767.0,3.61396]
[1724612208308,3.6135,2767.4,2766.7,3.61432]
[1724612208953,3.6135,2767.4,2766.8,3.61419]
[1724612209187,3.6135,2767.4,2766.7,3.61432]
[1724612209188,3.6135,2767.4,2766.9,3.61413]
[1724612209388,3.6135,2767.4,2766.9,4.336975]
[1724612211993,3.6133,2767.6,2766.9,4.336915]
[1724612212194,3.0,2767.5,2766.9,3.61407]
[1724612212895,6.61337,2767.5,2766.9,3.61407]
[1724612214839,3.0,2767.5,2767.0,3.61398]
[1724612215907,3.0,2767.5,2767.1,3.61385]
[1724612216108,5.2937,2767.7,2766.9,3.61413]
[1724612216444,3.61345,2767.5,2766.9,3.61407]
[1724612218172,5.90681,2767.7,2767.1,3.61378]
[1724612218532,3.0,2767.6,2767.1,3.61378]
[1724612218913,6.61324,2767.6,2767.1,3.61378]
[1724612222566,7.45,2768.0,2767.2,0.07227059]
[1724612222567,9.7437,2768.0,2767.2,0.07227059]
[1724612222889,9.7437,2768.0,2767.5,3.61328]
[1724612223360,7.45,2768.0,2767.5,3.61328]
[1724612223568,11.06272,2768.0,2767.5,3.61328]
[1724612223764,11.06272,2768.0,2767.3,3.61351]
[1724612223968,6.61286,2767.9,2767.4,0.598591]
[1724612224188,3.61319,2767.7,2767.1,3.61381]
[1724612225017,3.61319,2767.7,2767.1,7.22762]
[1724612225625,3.61319,2767.7,2767.2,3.61374]
[1724612226064,5.90668,2767.8,2767.2,3.61374]
[1724612227649,5.90668,2767.8,2767.3,3.61361]
[1724612228840,2.2937,2767.8,2767.3,4.336352]
[1724612229070,2.2937,2767.8,2767.4,3.61348]
[1724612231368,3.0,2767.9,2767.5,3.61329]
[1724612232167,3.0,2768.0,2767.5,3.61329]
[1724612234651,6.61274,2768.0,2767.5,3.61329]
[1724612235076,3.6131,2767.7,2767.1,3.61379]
[1724612235373,3.6131,2767.7,2767.2,3.61374]
[1724612235576,5.9173,2767.7,2767.2,3.61374]
[1724612236431,3.61324,2767.6,2767.1,0.753619]
[1724612236630,3.61324,2767.6,2767.1,4.367499]
[1724612236874,3.61324,2767.6,2767.1,0.753619]
[1724612237048,3.61324,2767.6,2767.0,3.61393]
[1724612237382,9.53167,2767.3,2766.9,1.0]
[1724612237681,3.61377,2767.2,2766.9,1.0]
[1724612238740,5.91793,2767.3,2766.9,1.0]
[1724612241291,3.61373,2767.3,2766.9,1.0]
[1724612241580,3.61343,2767.5,2766.9,3.4084]
[1724612241791,3.0,2767.4,2767.1,3.61381]
[1724612242095,3.0,2767.5,2767.1,3.61381]
[1724612243166,3.0,2767.5,2766.9,11.097926]
[1724612244856,3.0,2767.5,2766.9,7.483876]
[1724612245978,6.61337,2767.5,2766.9,7.483876]
[1724612246926,6.61337,2767.5,2766.9,5.075476]
[1724612250125,3.61353,2767.4,2766.9,5.075476]
[1724612250277,6.61337,2767.5,2766.9,5.075476]
[1724612250512,10.22683,2767.5,2766.9,5.075476]
[1724612253924,6.61337,2767.5,2766.9,5.075476]
[1724612254121,10.22683,2767.5,2766.9,5.075476]
[1724612254320,6.61337,2767.5,2767.0,0.63407342]
[1724612254533,6.61337,2767.5,2767.0,3.00587342]
[1724612256556,9.7852,2767.9,2767.0,4.27113165]
[1724612256689,3.61279,2768.0,2767.5,2.3718]
[1724612257491,3.61286,2767.9,2767.5,2.3718]
[1724612257690,7.22579,2767.9,2767.5,2.3718]
[1724612257928,7.22579,2767.9,2767.3,5.98531]
[1724612258229,3.61286,2767.9,2767.4,3.61348]
[1724612259838,3.61286,2767.9,2767.4,4.87873823]
[1724612261417,6.61263,2768.1,2767.5,3.61336]
[1724612261746,3.61273,2768.0,2767.4,4.87873823]
[1724612261937,3.0,2767.9,2767.4,4.87873823]
[1724612262247,3.0,2767.9,2767.5,0.8391977]
[1724612265053,6.61285,2767.9,2767.5,0.8391977]
[1724612267573,3.61263,2768.1,2767.5,0.8391977]
[1724612267771,11.06237,2768.3,2767.7,3.61305]
[1724612267978,3.0,2768.2,2767.7,6.08335]
[1724612268150,6.61246,2768.2,2767.8,0.608335]
[1724612268350,6.61246,2768.2,2767.7,6.08335]
[1724612272586,3.98992332,2768.5,2767.8,3.61293]
[1724612272773,6.61227,2768.4,2767.8,3.61293]
[1724612273364,3.61234,2768.3,2767.7,6.08335]
[1724612274871,3.61234,2768.3,2767.7,6.08332]
[1724612275176,3.61234,2768.3,2767.7,10.304672]
[1724612275694,3.61234,2768.3,2767.8,3.61296]
[1724612278317,3.61234,2768.3,2767.7,6.691652]
[1724612278482,3.61234,2768.3,2767.7,6.08332]
[1724612280008,3.61234,2768.3,2767.7,6.08331]
[1724612280395,1.26525823,2768.2,2767.5,3.61329]
[1724612280596,3.6126,2768.1,2767.5,3.61328]
[1724612281113,3.6126,2768.1,2767.6,3.61321]
[1724612281283,3.6126,2768.1,2767.6,4.582889]
[1724612281815,7.22478,2768.3,2767.6,4.582889]
[1724612282017,7.22478,2768.3,2767.7,3.61309]
[1724612283055,3.61234,2768.3,2767.8,2.4703]
[1724612283374,3.61234,2768.3,2767.8,6.08326]
[1724612283571,5.361,2768.4,2767.9,3.61278]
[1724612284330,3.0,2768.4,2767.9,3.61278]
[1724612284821,3.0,2768.4,2768.0,3.61268]
[1724612287672,3.0,2768.4,2767.8,10.7627129]
[1724612288420,6.6122,2768.4,2767.8,7.1497529]
[1724612288735,6.6122,2768.4,2767.8,10.7626429]